Workbook

Sheet DATA (hidden)
B1: ISMC | E1: ISMB | H1: ISA | K1: UNEQUAL ANGLES | N1: M.S FLAT | Q1: Plate | T1: Round Bar | W1: Square Hollow Tube
A2: ISMB | B2: ISMC 75 x 40 | C2: 7.126 | E2: ISLB 100 X 50 | F2: 8 | H2: ISA 20x20x3 | I2: 0.899 | K2: Uneq ISA 30x20x3 | L2: 1.1 | N2: M.S FLAT 12 x 3 | O2: 0.283 | Q2: PLATE 5 mm | R2: 39.25 | T2: Round Bar 8 mm | U2: 0.395 | W2: 20x20x5mm | X2: 2.355 | AC2: ISMC 75 x 40 | AD2: 7.126 | AE2: Rmtr.
A3: ISMC | B3: ISMC 100 x 50 | C3: 9.597 | E3: ISMB 116 X 100 | F3: 23 | H3: ISA 25x25x3 | I3: 1.099 | K3: Uneq ISA 30x20x4 | L3: 1.4 | N3: M.S FLAT 12 x 5 | O3: 0.471 | Q3: PLATE 6 mm | R3: =ROUND(6*7.85,3) -> 47.1 | T3: Round Bar 10 mm | U3: 0.617 | W3: 25x25x5mm | X3: 3.14 | AC3: ISMC 100 x 50 | AD3: 9.597 | AE3: Rmtr.
A4: ISA | B4: ISMC 125 x 65 | C4: 13.098 | E4: ISMB 100 x 50 | F4: 11.20 | H4: ISA 25x25x5 | I4: 1.798 | K4: Uneq ISA 30x20x5 | L4: 1.8 | N4: M.S FLAT 16 x 5 | O4: 0.628 | Q4: PLATE 8 mm | R4: 62.8 | T4: Round Bar 12 mm | U4: 0.888 | W4: 32x32x5mm | X4: 4.239 | AC4: ISMC 125 x 65 | AD4: 13.098 | AE4: Rmtr.
A5: MSFLAT | B5: ISMC 150 x 75 | C5: 16.799 | E5: ISMB 125 x 65 | F5: 13.20 | H5: ISA 31x31x3 | I5: 1.28 | K5: Uneq ISA 40x25x3 | L5: 1.5 | N5: M.S FLAT 20 x 5 | O5: 0.785 | Q5: PLATE 10 mm | R5: 78.5 | T5: Round Bar 16 mm | U5: 1.58 | W5: 40x40x5mm | X5: 5.495 | AC5: ISMC 150 x 75 | AD5: 16.799 | AE5: Rmtr.
A6: PLATE | B6: ISMC 175 x 75 | C6: 19.597 | E6: ISMB 150 x 75 | F6: 14.50 | H6: ISA 35x35x5 | I6: 2.599 | K6: Uneq ISA 40x25x4 | L6: 1.9 | N6: M.S FLAT 25 x 5 | O6: 0.981 | Q6: PLATE 12 mm | R6: 94.2 | T6: Round Bar 20 mm | U6: 2.47 | W6: 50x50x5mm | X6: 7.065 | AC6: ISMC 175 x 75 | AD6: 19.597 | AE6: Rmtr.
A7: RoundBar | B7: ISMC 200 x 75 | C7: 22.298 | E7: ISMB 175 x 75 | F7: 15.00 | H7: ISA 37x37x3 | I7: 1.7 | K7: Uneq ISA 40x25x5 | L7: 2.4 | N7: M.S FLAT 32 x 5 | O7: 1.256 | Q7: PLATE 16 mm | R7: 125.6 | T7: Round Bar 25 mm | U7: 3.58 | W7: 65x65x5mm | X7: 9.42 | AC7: ISMC 200 x 75 | AD7: 22.298 | AE7: Rmtr.
A8: UNEQUALANGLE | B8: ISMC 225 x 75 | C8: 22.32 | E8: ISMB 175 X 85 | F8: 19.5 | H8: ISA 40x40x3 | I8: 1.798 | K8: Uneq ISA 40x25x6 | L8: 2.8 | N8: M.S FLAT 35 x 5 | O8: 1.374 | Q8: PLATE 20 mm | R8: 157 | T8: Round Bar 28 mm | U8: 4.839 | W8: 75x55x5mm | X8: 9.42 | AC8: ISMC 2250 x 75 | AD8: 22.32 | AE8: Rmtr.
A9: SquareHollowTube | B9: ISMC 250 x 80 | C9: 30.599 | E9: ISMB 150 X 80 | F9: 15 | H9: ISA 40x40x5 | I9: 3.002 | K9: Uneq ISA 45x30x3 | L9: 1.7 | N9: M.S FLAT 40 x 5 | O9: 1.57 | Q9: PLATE 25 mm | R9: 196.25 | T9: Round Bar 32 mm | U9: 6.32 | W9: 20x45x5mm | X9: 4.71 | AC9: ISMC 250 x 80 | AD9: 30.599 | AE9: Rmtr.
A10: Cpurlin | B10: ISMC 300 x 90 | C10: 36.298 | E10: ISMB 200 x 75 | F10: 19.50 | H10: ISA 40x40x6 | I10: 3.498 | K10: Uneq ISA 45x30x4 | L10: 2.2 | N10: M.S FLAT 45 x 5 | O10: 1.766 | Q10: PLATE 30 mm | R10: 235.5 | T10: Round Bar 40 mm | U10: 9.876 | W10: 25x65x5mm | X10: 6.595 | AC10: ISMC 300 x 90 | AD10: 36.298 | AE10: Rmtr.
B11: ISMC 400 x 100 | C11: 49.4 | E11: ISMB 200 X 100 | F11: 25.4 | H11: ISA 45x45x5 | I11: 3.5 | K11: Uneq ISA 45x30x5 | L11: 2.8 | N11: M.S FLAT 50 x 5 | O11: 1.963 | Q11: PLATE 32 mm | R11: 251.2 | W11: 32x65x5mm | X11: 7.3 | AC11: ISMC 400 x 100 | AD11: 50.3 | AE11: Rmtr.
B12: C Purling 250x2,5mm | E12: ISMB 225 x 80 | F12: 25.90 | H12: ISA 50x50x5 | I12: 3.799 | K12: Uneq ISA 45x30x6 | L12: 3.3 | N12: M.S FLAT 20 x 6 | O12: 0.942 | Q12: PLATE 40 mm | R12: 314 | W12: 40x100x5mm | X12: 10.21 | AC12: C Purling 250x2,5mm | AD12: 7.2 | AE12: Rmtr.
E13: ISMB 225 X 110 | F13: 31.2 | H13: ISA 50x50x6 | I13: 4.502 | K13: Uneq ISA 50x30x3 | L13: 1.8 | N13: M.S FLAT 25 x 6 | O13: 1.178 | T13: 32
E14: ISMB 250 X 125 | F14: 37.3 | H14: ISA 60x60x6 | I14: 5.397 | K14: Uneq ISA 50x30x4 | L14: 2.4 | N14: M.S FLAT 32 x 6 | O14: 1.507 | T14: 5
E15: ISMB 250 x 125 | F15: 38.10 | H15: ISA 65x65x6 | I15: 5.798 | K15: Uneq ISA 50x30x5 | L15: 3 | N15: M.S FLAT 35 x 6 | O15: 1.649 | T15: =T13*T14*7850 -> 1256000
E16: ISMB 300 X 150 | F16: 37.7 | H16: ISA 65x65x8 | I16: 7.697 | K16: Uneq ISA 50x30x6 | L16: 3.5 | N16: M.S FLAT 40 x 6 | O16: 1.884 | T16: =T15/1000 -> 1256 | AC16: ISLB 100 X 50 | AD16: 8 | AE16: Rmtr.
E17: ISMB 300 X 140 | F17: 44.2 | H17: ISA 65x65x10 | I17: 9.397 | K17: Uneq ISA 60x40x5 | L17: 3.7 | N17: M.S FLAT 45 x 6 | O17: 2.12 | T17: =T16/1000 -> 1.256 | AC17: ISMB 116 X 100 | AD17: 23 | AE17: Rmtr.
E18: ISMB 350 X 165 | F18: 49.5 | H18: ISA 75x75x6 | I18: 6.798 | K18: Uneq ISA 60x40x6 | L18: 4.4 | N18: M.S FLAT 50 x 6 | O18: 2.355 | AC18: ISMB 100 x 50 | AD18: 11.20 | AE18: Rmtr.
E19: ISMB 350 X 140 | F19: 52.4 | H19: ISA 75x75x8 | I19: 8.898 | K19: Uneq ISA 60x40x8 | L19: 5.8 | N19: M.S FLAT 63 x 6 | O19: 2.967 | AC19: ISMB 125 x 65 | AD19: 13.20 | AE19: Rmtr.
E20: ISMB 400 X 140 | F20: 61.6 | H20: ISA 75x75x10 | I20: 10.998 | K20: Uneq ISA 65x45x5 | L20: 4.1 | N20: M.S FLAT 75 x 6 | O20: 3.533 | AC20: ISMB 150 x 75 | AD20: 14.50 | AE20: Rmtr.
E21: ISMB 400 X 165 | F21: 56.9 | H21: ISA 80x80x6 | I21: 7.297 | K21: Uneq ISA 65x45x6 | L21: 4.9 | N21: M.S FLAT 100 x 6 | O21: 0.471 | AC21: ISMB 175 x 75 | AD21: 15.00 | AE21: Rmtr.
E22: ISMB 450 X 150 | F22: 72.4 | H22: ISA 80x80x8 | I22: 9.597 | K22: Uneq ISA 65x45x8 | L22: 6.4 | N22: M.S FLAT 25 x 8 | O22: 1.57 | AC22: ISMB 175 X 85 | AD22: 19.5 | AE22: Rmtr.
E23: ISMB 500 X 180 | F23: 86.92 | H23: ISA 90x90x6 | I23: 8.199 | K23: Uneq ISA 70x45x5 | L23: 4.3 | N23: M.S FLAT 32 x 8 | O23: 2.01 | AC23: ISMB 150 X 80 | AD23: 15 | AE23: Rmtr.
E24: ISMB 600 X 210 | F24: 122.6 | H24: ISA 90x90x8 | I24: 10.801 | K24: Uneq ISA 70x45x6 | L24: 5.2 | N24: M.S FLAT 35 x 8 | O24: 2.198 | AC24: ISMB 200 x 75 | AD24: 19.50 | AE24: Rmtr.
H25: ISA 90x90x10 | I25: 13.4 | K25: Uneq ISA 70x45x6 | L25: 6.7 | N25: M.S FLAT 32 x 20 | O25: 5.024 | AC25: ISMB 200 X 100 | AD25: 25.4 | AE25: Rmtr.
H26: ISA 100x100x6 | I26: 9.2 | K26: Uneq ISA 70x45x6 | L26: 8.3 | N26: M.S FLAT 40 x 8 | O26: 2.512 | AC26: ISMB 225 x 80 | AD26: 25.90 | AE26: Rmtr.
H27: ISA 100x100x8 | I27: 12.097 | K27: Uneq ISA 75x50x5 | L27: 4.7 | N27: M.S FLAT 45 x 8 | O27: 2.826 | AC27: ISMB 225 X 110 | AD27: 31.2 | AE27: Rmtr.
H28: ISA 100x100x10 | I28: 14.912 | K28: Uneq ISA 75x50x6 | L28: 5.6 | N28: M.S FLAT 50 x 8 | O28: 3.14 | AC28: ISMB 250 X 125 | AD28: 37.3 | AE28: Rmtr.
H29: ISA 100x100x12 | I29: 17.701 | K29: Uneq ISA 75x50x6 | L29: 7.4 | N29: M.S FLAT 63 x 8 | O29: 3.956 | AC29: ISMB 250 x 125 | AD29: 38.10 | AE29: Rmtr.
H30: ISA 110x110x12 | I30: 16.497 | K30: Uneq ISA 75x50x10 | L30: 9 | N30: M.S FLAT 75 x 8 | O30: 4.71 | AC30: ISMB 300 X 150 | AD30: 37.7 | AE30: Rmtr.
H31: ISA 130x130x10 | I31: 19.699 | K31: Uneq ISA 80x50x5 | L31: 4.9 | N31: M.S FLAT 80 x 8 | O31: 5.024 | AC31: ISMB 300 X 140 | AD31: 44.2 | AE31: Rmtr.
H32: ISA 150x150x10 | I32: 22.803 | K32: Uneq ISA 80x50x6 | L32: 5.9 | N32: M.S FLAT 90 x 8 | O32: 5.652 | AC32: ISMB 350 X 165 | AD32: 49.5 | AE32: Rmtr.
H33: ISA 150x150x12 | I33: 27.199 | K33: Uneq ISA 80x50x8 | L33: 7.7 | N33: M.S FLAT 100 x 8 | O33: 0.628 | AC33: ISMB 350 X 140 | AD33: 52.4 | AE33: Rmtr.
H34: ISA 150x150x16 | I34: 35.799 | K34: Uneq ISA 80x50x10 | L34: 9.4 | N34: M.S FLAT 120 x 8 | O34: 0.754 | AC34: ISMB 400 X 140 | AD34: 61.6 | AE34: Rmtr.
H35: ISA 150x150x20 | I35: 44.1 | N35: M.S FLAT 125 x 8 | O35: 0.754 | AC35: ISMB 400 X 165 | AD35: 56.9 | AE35: Rmtr.
H36: ISA 200X200X12 | I36: 36.6 | N36: M.S FLAT 150 x 8 | O36: 0.942 | AC36: ISMB 450 X 150 | AD36: 72.4 | AE36: Rmtr.
N37: M.S FLAT 200 x 8 | O37: 1.256 | AC37: ISMB 500 X 180 | AD37: 86.92 | AE37: Rmtr.
N38: M.S FLAT 25 x 10 | O38: 1.963 | AC38: ISMB 600 X 210 | AD38: 122.6 | AE38: Rmtr.
N39: M.S FLAT 32 x 10 | O39: 2.512
N40: M.S FLAT 40 x 10 | O40: 3.14
N41: M.S FLAT 45 x 10 | O41: 3.533
N42: M.S FLAT 50 x 10 | O42: 3.925 | AC42: ISA 20x20x3 | AD42: 0.899 | AE42: Rmtr.
N43: M.S FLAT 63 x 10 | O43: 4.946 | AC43: ISA 25x25x3 | AD43: 1.099 | AE43: Rmtr.
N44: M.S FLAT 75 x 10 | O44: 5.888 | AC44: ISA 25x25x5 | AD44: 1.798 | AE44: Rmtr.
N45: M.S FLAT 100 x 10 | O45: 0.785 | AC45: ISA 31x31x3 | AD45: 1.28 | AE45: Rmtr.
N46: M.S FLAT 125 x 10 | O46: 0.942 | AC46: ISA 35x35x5 | AD46: 2.599 | AE46: Rmtr.
N47: M.S FLAT 150 x 10 | O47: 1.178 | AC47: ISA 37x37x3 | AD47: 1.7 | AE47: Rmtr.
N48: M.S FLAT 200 x 10 | O48: 1.57 | AC48: ISA 40x40x3 | AD48: 1.798 | AE48: Rmtr.
N49: M.S FLAT 25 x 12 | O49: 2.355 | AC49: ISA 40x40x5 | AD49: 3 | AE49: Rmtr.
N50: M.S FLAT 32 x 12 | O50: 3.014 | AC50: ISA 40x40x6 | AD50: 3.5 | AE50: Rmtr.
N51: M.S FLAT 40 x 12 | O51: 3.768 | AC51: ISA 45x45x5 | AD51: 3.5 | AE51: Rmtr.
N52: M.S FLAT 45 x 12 | O52: 4.239 | AC52: ISA 50x50x5 | AD52: 3.8 | AE52: Rmtr.
N53: M.S FLAT 50 x 12 | O53: 4.71 | AC53: ISA 50x50x6 | AD53: 4.5 | AE53: Rmtr.
N54: M.S FLAT 63 x 12 | O54: 5.935 | AC54: ISA 60x60x6 | AD54: 5.397 | AE54: Rmtr.
N55: M.S FLAT 75 x 12 | O55: 7.065 | AC55: ISA 65x65x6 | AD55: 5.798 | AE55: Rmtr.
N56: M.S FLAT 100 x 12 | O56: 9.42 | AC56: ISA 65x65x8 | AD56: 7.697 | AE56: Rmtr.
N57: M.S FLAT 125 x 12 | O57: 11.775 | Q57: =100*12*7.85/1000 -> 9.42 | AC57: ISA 65x65x10 | AD57: 9.397 | AE57: Rmtr.
N58: M.S FLAT 150 x 12 | O58: 14.13 | Q58: =12*125*7.85/1000 -> 11.775 | AC58: ISA 75x75x6 | AD58: 6.798 | AE58: Rmtr.
N59: M.S FLAT 200 x 12 | O59: 18.84 | Q59: =150*12/1000*7.85 -> 14.13 | AC59: ISA 75x75x8 | AD59: 8.898 | AE59: Rmtr.
N60: M.S FLAT 25 x 16 | O60: 3.14 | Q60: =200*12*7.85/1000 -> 18.84 | AC60: ISA 75x75x10 | AD60: 10.998 | AE60: Rmtr.
N61: M.S FLAT 32 x 16 | O61: 4.019 | Q61: =25*16*7.85/1000 -> 3.14 | AC61: ISA 80x80x6 | AD61: 7.297 | AE61: Rmtr.
N62: M.S FLAT 40 x 16 | O62: 5.024 | AC62: ISA 80x80x8 | AD62: 9.597 | AE62: Rmtr.
N63: M.S FLAT 45 x 16 | O63: 5.652 | AC63: ISA 90x90x6 | AD63: 8.199 | AE63: Rmtr.
N64: M.S FLAT 50 x 16 | O64: 6.28 | AC64: ISA 90x90x8 | AD64: 10.801 | AE64: Rmtr.
N65: M.S FLAT 63 x 16 | O65: 7.913 | AC65: ISA 90x90x10 | AD65: 13.4 | AE65: Rmtr.
N66: M.S FLAT 75 x 16 | O66: 9.42 | AC66: ISA 100x100x6 | AD66: 9.2 | AE66: Rmtr.
N67: M.S FLAT 100 x 16 | O67: 1.256 | AC67: ISA 100x100x8 | AD67: 12.097 | AE67: Rmtr.
N68: M.S FLAT 125 x 16 | O68: 1.507 | AC68: ISA 100x100x10 | AD68: 14.912 | AE68: Rmtr.
N69: M.S FLAT 150 x 16 | O69: 1.884 | AC69: ISA 100x100x12 | AD69: 17.701 | AE69: Rmtr.
N70: M.S FLAT 200 x 16 | O70: 2.512 | AC70: ISA 110x110x12 | AD70: 16.497 | AE70: Rmtr.
N71: M.S FLAT 25 x 20 | O71: 3.925 | AC71: ISA 130x130x10 | AD71: 19.699 | AE71: Rmtr.
AC72: ISA 150x150x10 | AD72: 22.803 | AE72: Rmtr.
AC73: ISA 150x150x12 | AD73: 27.199 | AE73: Rmtr.
AC74: ISA 150x150x16 | AD74: 35.799 | AE74: Rmtr.
AC75: ISA 150x150x20 | AD75: 44.1 | AE75: Rmtr.
AC76: ISA 200X200X12 | AD76: 36.6 | AE76: Rmtr.
AC79: PLATE 5 mm | AD79: 39.25 | AE79: Sqm
AC80: PLATE 6 mm | AD80: =ROUND(6*7.85,3) -> 47.1 | AE80: Sqm
AC81: PLATE 8 mm | AD81: 62.8 | AE81: Sqm
AC82: PLATE 10 mm | AD82: 78.5 | AE82: Sqm
AC83: PLATE 12 mm | AD83: 94.2 | AE83: Sqm
AC84: PLATE 16 mm | AD84: 125.6 | AE84: Sqm
AC85: PLATE 20 mm | AD85: 157 | AE85: Sqm
AC86: PLATE 25 mm | AD86: 196.25 | AE86: Sqm
AC87: PLATE 30 mm | AD87: 235.5 | AE87: Sqm
AC88: PLATE 32 mm | AD88: 251.2 | AE88: Sqm
AC89: PLATE 40 mm | AD89: 314 | AE89: Sqm
AC91: Round Bar 8 mm | AD91: 0.395 | AE91: Rmtr.
AC92: Round Bar 10 mm | AD92: 0.617 | AE92: Rmtr.
AC93: Round Bar 12 mm | AD93: 0.888 | AE93: Rmtr.
AC94: Round Bar 16 mm | AD94: 1.58 | AE94: Rmtr.
AC95: Round Bar 20 mm | AD95: 2.47 | AE95: Rmtr.
AC96: Round Bar 25 mm | AD96: 3.58 | AE96: Rmtr.
AC97: Round Bar 28 mm | AD97: 4.839 | AE97: Rmtr.
AC98: Round Bar 32 mm | AD98: 6.32 | AE98: Rmtr.
AC99: Round Bar 40 mm | AD99: 9.876 | AE99: Rmtr.
AC101: M.S FLAT 12 x 3 | AD101: 0.283 | AE101: Rmtr.
AC102: M.S FLAT 12 x 5 | AD102: 0.471 | AE102: Rmtr.
AC103: M.S FLAT 16 x 5 | AD103: 0.628 | AE103: Rmtr.
AC104: M.S FLAT 20 x 5 | AD104: 0.785 | AE104: Rmtr.
AC105: M.S FLAT 25 x 5 | AD105: 0.981 | AE105: Rmtr.
AC106: M.S FLAT 32 x 5 | AD106: 1.256 | AE106: Rmtr.
AC107: M.S FLAT 35 x 5 | AD107: 1.374 | AE107: Rmtr.
AC108: M.S FLAT 40 x 5 | AD108: 1.57 | AE108: Rmtr.
AC109: M.S FLAT 45 x 5 | AD109: 1.766 | AE109: Rmtr.
AC110: M.S FLAT 50 x 5 | AD110: 1.963 | AE110: Rmtr.
AC111: M.S FLAT 20 x 6 | AD111: 0.942 | AE111: Rmtr.
AC112: M.S FLAT 25 x 6 | AD112: 1.178 | AE112: Rmtr.
AC113: M.S FLAT 32 x 6 | AD113: 1.507 | AE113: Rmtr.
AC114: M.S FLAT 35 x 6 | AD114: 1.649 | AE114: Rmtr.
AC115: M.S FLAT 40 x 6 | AD115: 1.884 | AE115: Rmtr.
AC116: M.S FLAT 45 x 6 | AD116: 2.12 | AE116: Rmtr.
AC117: M.S FLAT 50 x 6 | AD117: 2.355 | AE117: Rmtr.
AC118: M.S FLAT 63 x 6 | AD118: 2.967 | AE118: Rmtr.
AC119: M.S FLAT 75 x 6 | AD119: 3.533 | AE119: Rmtr.
AC120: M.S FLAT 100 x 6 | AD120: 0.471 | AE120: Rmtr.
AC121: M.S FLAT 25 x 8 | AD121: 1.57 | AE121: Rmtr.
AC122: M.S FLAT 32 x 8 | AD122: 2.01 | AE122: Rmtr.
AC123: M.S FLAT 35 x 8 | AD123: 2.198 | AE123: Rmtr.
AC124: M.S FLAT 32 x 20 | AD124: 5.024 | AE124: Rmtr.
AC125: M.S FLAT 40 x 8 | AD125: 2.512 | AE125: Rmtr.
AC126: M.S FLAT 45 x 8 | AD126: 2.826 | AE126: Rmtr. | AF126: =75*8*7.85/1000 -> 4.71
AC127: M.S FLAT 50 x 8 | AD127: 3.14 | AE127: Rmtr.
AC128: M.S FLAT 63 x 8 | AD128: 3.956 | AE128: Rmtr.
AC129: M.S FLAT 75 x 8 | AD129: 4.71 | AE129: Rmtr.
AC130: M.S FLAT 80 x 8 | AD130: 5.024 | AE130: Rmtr.
AC131: M.S FLAT 90 x 8 | AD131: 5.652 | AE131: Rmtr.
AC132: M.S FLAT 100 x 8 | AD132: 0.628 | AE132: Rmtr.
AC133: M.S FLAT 120 x 8 | AD133: 0.754 | AE133: Rmtr.
AC134: M.S FLAT 125 x 8 | AD134: 0.754 | AE134: Rmtr.
AC135: M.S FLAT 150 x 8 | AD135: 0.942 | AE135: Rmtr.
AC136: M.S FLAT 200 x 8 | AD136: 1.256 | AE136: Rmtr.
AC137: M.S FLAT 25 x 10 | AD137: 1.963 | AE137: Rmtr.
AC138: M.S FLAT 32 x 10 | AD138: 2.512 | AE138: Rmtr.
AC139: M.S FLAT 40 x 10 | AD139: 3.14 | AE139: Rmtr.
AC140: M.S FLAT 45 x 10 | AD140: 3.533 | AE140: Rmtr.
AC141: M.S FLAT 50 x 10 | AD141: 3.925 | AE141: Rmtr.
AC142: M.S FLAT 63 x 10 | AD142: 4.946 | AE142: Rmtr.
AC143: M.S FLAT 75 x 10 | AD143: 5.888 | AE143: Rmtr.
AC144: M.S FLAT 100 x 10 | AD144: 7.85 | AE144: Rmtr.
AC145: M.S FLAT 125 x 10 | AD145: 9.813 | AE145: Rmtr.
AC146: M.S FLAT 150 x 10 | AD146: 11.775 | AE146: Rmtr.
AC147: M.S FLAT 200 x 10 | AD147: 15.7 | AE147: Rmtr.
AC148: M.S FLAT 25 x 12 | AD148: 2.355 | AE148: Rmtr.
AC149: M.S FLAT 32 x 12 | AD149: 3.014 | AE149: Rmtr.
AC150: M.S FLAT 40 x 12 | AD150: 3.768 | AE150: Rmtr.
AC151: M.S FLAT 45 x 12 | AD151: 4.239 | AE151: Rmtr.
AC152: M.S FLAT 50 x 12 | AD152: 4.71 | AE152: Rmtr.
AC153: M.S FLAT 63 x 12 | AD153: 5.935 | AE153: Rmtr.
AC154: M.S FLAT 75 x 12 | AD154: 7.065 | AE154: Rmtr.
AC155: M.S FLAT 100 x 12 | AD155: 9.42 | AE155: Rmtr.
AC156: M.S FLAT 125 x 12 | AD156: 11.775 | AE156: Rmtr.
AC157: M.S FLAT 150 x 12 | AD157: 14.13 | AE157: Rmtr.
AC158: M.S FLAT 200 x 12 | AD158: 18.84 | AE158: Rmtr.
AC159: M.S FLAT 25 x 16 | AD159: 3.14 | AE159: Rmtr.
AC160: M.S FLAT 32 x 16 | AD160: 4.019 | AE160: Rmtr.
AC161: M.S FLAT 40 x 16 | AD161: 5.024 | AE161: Rmtr.
AC162: M.S FLAT 45 x 16 | AD162: 5.652 | AE162: Rmtr.
AC163: M.S FLAT 50 x 16 | AD163: 6.28 | AE163: Rmtr.
AC164: M.S FLAT 63 x 16 | AD164: 7.913 | AE164: Rmtr.
AC165: M.S FLAT 75 x 16 | AD165: 9.42 | AE165: Rmtr.
AC166: M.S FLAT 100 x 16 | AD166: 12.56 | AE166: Rmtr.
AC167: M.S FLAT 125 x 16 | AD167: 15.07 | AE167: Rmtr.
AC168: M.S FLAT 150 x 16 | AD168: 18.84 | AE168: Rmtr.
AC169: M.S FLAT 200 x 16 | AD169: 25.12 | AE169: Rmtr.
AC170: M.S FLAT 25 x 20 | AD170: 39.25 | AE170: Rmtr.
AC172: CPURLIN 250x70c2.5mm | AD172: 7.2 | AE172: Rmtr.
AC174: Square Hollow Tube
AC175: 20x20x5mm | AD175: 2.355 | AE175: Rmtr.
AC176: 25x25x5mm | AD176: 3.14 | AE176: Rmtr.
AC177: 32x32x5mm | AD177: 4.239 | AE177: Rmtr.
AC178: 40x40x5mm | AD178: 5.495 | AE178: Rmtr.
AC179: 50x50x5mm | AD179: 7.065 | AE179: Rmtr.
AC180: 65x65x5mm | AD180: 9.42 | AE180: Rmtr.
AC181: 75x55x5mm | AD181: 9.42 | AE181: Rmtr.
AC182: 20x45x5mm | AD182: 4.71 | AE182: Rmtr.
AC183: 25x65x5mm | AD183: 6.595 | AE183: Rmtr.
AC184: 32x65x5mm | AD184: 7.3 | AE184: Rmtr.
AC185: 40x100x5mm | AD185: 10.21 | AE185: Rmtr.
AC190: Uneq ISA 30x20x3 | AD190: 1.1 | AE190: Rmtr.
AC191: Uneq ISA 30x20x4 | AD191: 1.4 | AE191: Rmtr.
AC192: Uneq ISA 30x20x5 | AD192: 1.8 | AE192: Rmtr.
AC193: Uneq ISA 40x25x3 | AD193: 1.5 | AE193: Rmtr.
AC194: Uneq ISA 40x25x4 | AD194: 1.9 | AE194: Rmtr.
AC195: Uneq ISA 40x25x5 | AD195: 2.4 | AE195: Rmtr.
AC196: Uneq ISA 40x25x6 | AD196: 2.8 | AE196: Rmtr.
AC197: Uneq ISA 45x30x3 | AD197: 1.7 | AE197: Rmtr.
AC198: Uneq ISA 45x30x4 | AD198: 2.2 | AE198: Rmtr.
AC199: Uneq ISA 45x30x5 | AD199: 2.8 | AE199: Rmtr.
AC200: Uneq ISA 45x30x6 | AD200: 3.3 | AE200: Rmtr.
AC201: Uneq ISA 50x30x3 | AD201: 1.8 | AE201: Rmtr.
AC202: Uneq ISA 50x30x4 | AD202: 2.4 | AE202: Rmtr.
AC203: Uneq ISA 50x30x5 | AD203: 3 | AE203: Rmtr.
AC204: Uneq ISA 50x30x6 | AD204: 3.5 | AE204: Rmtr.
AC205: Uneq ISA 60x40x5 | AD205: 3.7 | AE205: Rmtr.
AC206: Uneq ISA 60x40x6 | AD206: 4.4 | AE206: Rmtr.
AC207: Uneq ISA 60x40x8 | AD207: 5.8 | AE207: Rmtr.
AC208: Uneq ISA 65x45x5 | AD208: 4.1 | AE208: Rmtr.
AC209: Uneq ISA 65x45x6 | AD209: 4.9 | AE209: Rmtr.
AC210: Uneq ISA 65x45x8 | AD210: 6.4 | AE210: Rmtr.
... 12 more rows

Sheet Readme (hidden)
B1: MILD Steel Calculator for M.S STRUCTURE
B2: This is a Mild Steel Measurement Book designed for civil engineers, contractors, and construction professionals. It helps you easily calculate steel quantities and weights for various structural steel sections used in construction projects.
B3: Developer: Er. Kuljit Singh
B4: Mobile: 8727060647
B5: Email: arsh@arshavtar.in
B6: ⚡ QUICK START Open the file
B7: Click "Add New Row"
B8: Enter Description in Column B
B9: Select Element Mark and element thype
B10: Enter Nos., Length, Width
B11: Click "Copy to Summary" for report
B12: Click "View Summary" to see report
B13: © 2024 All Rights Reserved | M.S Steel Format
B15: 📌 TO START A NEW PROJECT
B16: Click the "New Project" button. This will clear all previous data from Row 6 onward, while keeping all formulas intact.
B18: 🎨 BUTTON FUNCTIONS Button Function Add New Row Inserts a new row for data entry Copy to Summary Creates summary report View Summary Goes to Summary sheet Update S.No. Re-numbers serial numbers Contact Developer Shows developer contact info ⚠️ DEMO VERSION LIMITATIONS Maximum 20 entries allowed
B20: Contact developer for full version:
B21: Er. Kuljit Singh
B22: Mobile: 8727060647
B23: Email: arsh@arshavtar.in
B25: 📝 TIPS FOR BEST USE Always start from row 7 (Rows above contain formulas)
B26: Don't delete rows with formulas
B27: Use dropdown lists for Element Mark and Elenent type
B28: Description should be meaningful
B29: Check Summary after each major entry
B31: 🚀 KEY FEATURES ✅ User-friendly interface with buttons
B32: ✅ Auto-calculation of quantities and weights
B33: ✅ Drop-down lists for easy selection
B34: ✅ Auto-generated serial numbers
B35: ✅ Summary reports with totals
B36: ✅ Protected sheets to prevent accidental changes
B37: ✅ Demo version with 20-entry limit
B38: ✅ Contact developer feature
B39: 📧 SUPPORT For any issues or full version:
B40: Contact developer for full version:
B41: Er. Kuljit Singh
B42: Mobile: 8727060647
B43: Email: arsh@arshavtar.in
B46: Developer: Er. Kuljit Singh
B47: Mobile: 8727060647
B48: Email: arsh@arshavtar.in

Sheet Summary (hidden)
A1: S.No | B1: Element Type | C1: Unit | D1: Qty | E1: Weight
A2: 1 | B2: ISMB ISMB 150 X 80 | C2: Rmtr. | D2: 24 | E2: 360
A3: 2 | B3: ISMC ISMC 125 x 65 | C3: Rmtr. | D3: 12 | E3: 157.18
A4: 3 | B4: ISMC ISMC 175 x 75 | C4: Rmtr. | D4: 12 | E4: 235.16
A5: TOTAL | D5: =SUM(D2:D4) -> 48 | E5: =SUM(E2:E4) -> 752.34

Sheet Entry
D1: Company Name
B2: Project:-
D4: Mild Steel Measurement Book
B5: Description | C5: Element Mark | D5: Element Type | E5: Unit | F5: Nos. | G5: Length | H5: Width | I5: Qnty | J5: Wt. / Mtr. | K5: Toal Weight | M5: =SUM(K:K) -> 752.34
A6: 1 | B6: c1 | C6: ISMB | D6: ISMB 150 X 80 | E6: =IF(ISERROR(VLOOKUP(D6,'DATA '!$AC$2:$AE$1022,3,FALSE)),"",VLOOKUP(D6,'DATA '!$AC$2:$AE$1022,3,FALSE)) -> Rmtr. | F6: 4 | G6: 6 | I6: =IF(E6="Sqm",F6*G6*H6,F6*G6) -> 24 | J6: =IF(ISERROR(VLOOKUP(D6,'DATA '!$AC$2:$AD$1022,2,0)),"",VLOOKUP(D6,'DATA '!$AC$2:$AD$1022,2,0)) -> 15 | K6: =IF(ISERROR(IF(I6>0,ROUND(I6*J6,2),"")),0,IF(I6>0,ROUND(I6*J6,2),"")) -> 360
A7: 1 | B7: c2 | C7: ISMC | D7: ISMC 125 x 65 | E7: =IF(ISERROR(VLOOKUP(D7,'DATA '!$AC$2:$AE$1022,3,FALSE)),"",VLOOKUP(D7,'DATA '!$AC$2:$AE$1022,3,FALSE)) -> Rmtr. | F7: 2 | G7: 6 | I7: =IF(E7="Sqm",F7*G7*H7,F7*G7) -> 12 | J7: =IF(ISERROR(VLOOKUP(D7,'DATA '!$AC$2:$AD$1022,2,0)),"",VLOOKUP(D7,'DATA '!$AC$2:$AD$1022,2,0)) -> 13.098 | K7: =IF(ISERROR(IF(I7>0,ROUND(I7*J7,2),"")),0,IF(I7>0,ROUND(I7*J7,2),"")) -> 157.18
A8: 2 | B8: b1 | C8: ISMC | D8: ISMC 175 x 75 | E8: =IF(ISERROR(VLOOKUP(D8,'DATA '!$AC$2:$AE$1022,3,FALSE)),"",VLOOKUP(D8,'DATA '!$AC$2:$AE$1022,3,FALSE)) -> Rmtr. | F8: 4 | G8: 3 | I8: =IF(E8="Sqm",F8*G8*H8,F8*G8) -> 12 | J8: =IF(ISERROR(VLOOKUP(D8,'DATA '!$AC$2:$AD$1022,2,0)),"",VLOOKUP(D8,'DATA '!$AC$2:$AD$1022,2,0)) -> 19.597 | K8: =IF(ISERROR(IF(I8>0,ROUND(I8*J8,2),"")),0,IF(I8>0,ROUND(I8*J8,2),"")) -> 235.16
